Cogmind - Beta 11 @@@ ROGUE MODE // 2022.04.09 @ 18:24:49 Player: Cookie Result: Destroyed by G-47 Trooper with Particle Gun Performance ------------- Evolutions (2) 1000 Regions Visited (5) 1000 Robots Destroyed (39) 195 Value Destroyed (594) 594 Prototype IDs (5) 100 Alien Tech Used (0) 0 Bonus (25) 25 TOTAL SCORE: 2914 Bonus ------- Follower Combat Kills 25 Cogmind --------- Core Integrity 0/550 Matter 300/300 Energy 144/250 System Corruption 0% Temperature Cool (9) Movement Rolling (95) Ox1 Location -8/Materials Parts ------- > --- POWER (1) -------- Ion Engine > --- PROPULSION (3) --- Wheel Wheel > --- UTILITY (4) ------ Improved Heat Sink Large Storage Unit Advanced Targeting Computer Hacking Suite > --- WEAPON (3) ------- Ion Cannon Heavy Ion Cannon > --- INVENTORY (15) --- Improved Ion Engine Nuclear Core Improved Utility Shielding Decoy Drone Bay Shock Bomb Launcher Shock Bomb Launcher Improved Datajack Peak State ------------ > --- POWER ------------ Nuclear Core > --- PROPULSION ------- Wheel Wheel Armored Wheel > --- UTILITY ---------- Improved Heat Sink Large Storage Unit Advanced Targeting Computer Hacking Suite > --- WEAPON ----------- Particle Cannon Heavy Ion Cannon Shock Bomb Launcher > --- INVENTORY -------- Ion Engine Improved Ion Engine Wheel Improved Utility Shielding Decoy Drone Bay Ion Cannon Shock Bomb Launcher Improved Datajack [Rating: 29] Favorites ----------- Power Ion Engine Engine Ion Engine Power Core Nuclear Core Propulsion Wheel Wheel Wheel Utility Hacking Suite Device Seismic Detector Storage Medium Storage Unit Processor Advanced Targeting Computer Hackware Hacking Suite Weapon Assault Rifle Energy Gun Medium Laser Energy Cannon Heavy Ion Cannon Ballistic Gun Assault Rifle Launcher Shock Bomb Launcher Build | -11 -10 -10 -9 -9 -8 ------- Run | Scr Mat Min Mat Min Mat Slots Evolved 4 | . . . 2 . 2 Power . | . . . . . . Propulsion 1 | . . . . . 1 Utility 2 | . . . 1 . 1 Weapon 1 | . . . 1 . . Parts Attached 30 | 7 1 . 6 . 16 Power 5 | 1 . . 2 . 2 Engine 4 | 1 . . 2 . 1 Core 1 | . . . . . 1 Reactor . | . . . . . . Propulsion 8 | 2 . . . . 6 Treads . | . . . . . . Leg . | . . . . . . Wheel 8 | 2 . . . . 6 Hover . | . . . . . . Flight . | . . . . . . Utility 7 | 2 1 . 3 . 1 Device 2 | 1 . . . . 1 Storage 3 | 1 1 . 1 . . Processor 1 | . . . 1 . . Hackware 1 | . . . 1 . . Protection . | . . . . . . Artifact . | . . . . . . Weapon 10 | 2 . . 1 . 7 Energy Gun 1 | 1 . . . . . Energy Cannon 4 | . . . . . 4 Ballistic Gun 2 | 1 . . 1 . . Ballistic Cannon . | . . . . . . Launcher 3 | . . . . . 3 Special Weapon . | . . . . . . Impact Weapon . | . . . . . . Slashing Weapon . | . . . . . . Piercing Weapon . | . . . . . . Special Melee Weapon . | . . . . . . Unidentified Prototypes 2 | . . . 1 . 1 Parts Lost 10 | . . . 1 . 9 Power 3 | . . . 1 . 2 Propulsion 4 | . . . . . 4 Utility . | . . . . . . Weapon 3 | . . . . . 3 Highest Loss Streak 4 | . . . 1 . 4 To Critical Strikes . | . . . . . . Average Slot Usage (%) 97 | . 100 100 100 100 91 Engine 10 | . 14 14 11 11 3 Core 1 | . . . . . 5 Wheel 24 | . 28 28 22 22 25 Device 5 | . 14 14 . . 4 Storage 11 | . 14 14 11 11 9 Processor 6 | . . . 11 11 9 Hackware 6 | . . . 11 11 9 Energy Gun 9 | . 14 14 11 11 . Energy Cannon 4 | . . . . . 17 Ballistic Gun 14 | . 14 14 22 22 2 Launcher 1 | . . . . . 5 Naked Turns . | . . . . . . Heaviest Build 48 | 15 20 20 33 33 48 Greatest Support 32 | 20 20 20 20 20 32 Greatest Overweight (x) 4 | . . . 1 1 4 Average Overweight (x) . | . . . 1 1 1 Largest Inventory Capacity 15 | 8 10 10 15 15 15 Average Capacity 11 | 7 9 10 10 15 15 Most Carried 12 | 5 5 10 10 12 11 Average Carried 7 | 2 4 7 7 10 9 Final Capacity 15 | 8 10 10 15 15 15 Final Carried 12 | 4 4 10 10 12 8 Class Distribution -------------------- 57% | Mutant 42% | Gunner Dominant Class ---------------- Mutant | -10/Materials Mutant | -10/Mines Gunner | -9/Materials Gunner | -9/Mines Mutant | -8/Materials Resources | -11 -10 -10 -9 -9 -8 ----------- Run | Scr Mat Min Mat Min Mat Matter Collected 799 | 291 34 24 42 . 408 Remotely . | . . . . . . Salvage Created 1098 | 112 41 88 100 . 757 Parts 80 | 6 6 11 6 . 51 Haulers Intercepted 4 | . . . 2 . 2 Recyclers Shooed 2 | . . . . . 2 Parts Field Recycled . | . . . . . . Retrieved Matter . | . . . . . . Parts Self-Destructed . | . . . . . . Prevented . | . . . . . . Kills | -11 -10 -10 -9 -9 -8 ------- Run | Scr Mat Min Mat Min Mat Combat Hostiles Destroyed 26 | . 3 6 . . 17 Guns 13 | . 3 6 . . 4 Cannons 8 | . . . . . 8 AOE 5 | . . . . . 5 Classes Destroyed 9 | 2 1 . 1 . 5 Worker 3 | . . . . . 3 Builder 1 | . . . . . 1 Tunneler 2 | 2 . . . . . Hauler 4 | . . . 2 . 2 Recycler 2 | 1 . . . . 1 Operator 1 | . . . . . 1 Swarmer 19 | . 3 6 . . 10 Grunt 4 | . . . . . 4 Sentry 3 | . . . . . 3 Best Kill Streak 6 | 2 3 3 1 . 6 Combat Bots Only 6 | . 3 3 . . 6 Max Kills in Single Turn 3 | 1 1 2 1 . 3 Gunslinging 1 | . . 1 . . . Exploded 3 | . . . . . 3 Melee . | . . . . . . Uniques/NPCs Destroyed . | . . . . . . Combat | -11 -10 -10 -9 -9 -8 -------- Run | Scr Mat Min Mat Min Mat Damage Taken 1841 | . 15 111 100 . 1615 Core 601 | . . 8 30 . 563 Absorbed by Shields . | . . . . . . Core Remaining (%) 96 | 100 . 96 . 92 . Volleys Fired 77 | 11 4 8 5 . 49 Largest 3 | 2 2 2 3 . 3 Hottest 201 | 70 70 70 90 . 201 Shots Fired 174 | 22 8 16 15 . 113 Gun 77 | 22 8 16 15 . 16 Cannon 92 | . . . . . 92 Launcher 5 | . . . . . 5 Special . | . . . . . . Kinetic 49 | 11 4 8 10 . 16 Thermal 120 | 11 4 8 5 . 92 Explosive . | . . . . . . Electromagnetic 5 | . . . . . 5 Robot Hit Streak 13 | 7 4 3 5 . 13 Robot Miss Streak 4 | 2 1 4 1 . 3 Penetration Max . | . . . . . . Secondary Targets 2 | . . 2 . . . Max Gunslinging Chain 1 | . . 1 . . . Shots Hit Robots 99 | 13 5 7 10 . 64 Core Hits 50 | 4 3 6 3 . 34 Critical Kills 1 | . . . . . 1 Critical Parts Destroyed . | . . . . . . Critical Strikes 2 | . 1 . . . 1 Burn 1 | . 1 . . . . Meltdown 1 | . . . . . 1 Melee Attacks . | . . . . . . Impact . | . . . . . . Slashing . | . . . . . . Piercing . | . . . . . . Sneak Attacks . | . . . . . . Combat Hostiles . | . . . . . . Follow-up Attacks . | . . . . . . Damage Inflicted 2186 | 182 59 100 123 . 1722 Guns 575 | 182 59 100 123 . 111 Cannons 1185 | . . . . . 1185 Explosions 426 | . . . . . 426 Melee . | . . . . . . Ramming . | . . . . . . Kinetic 364 | 93 23 63 74 . 111 Thermal 1396 | 89 36 37 49 . 1185 Explosive 183 | . . . . . 183 Electromagnetic 243 | . . . . . 243 Impact . | . . . . . . Slashing . | . . . . . . Piercing . | . . . . . . Highest Corruption . | . . . . . . Average Corruption . | . . . . . . Corruption Purged . | . . . . . . Corruption Blocked . | . . . . . . Overload Shots . | . . . . . . Overflow Damage 54 | . . . . . 54 Projectiles 6 | . . . . . 6 Explosions 48 | . . . . . 48 Melee . | . . . . . . Knockbacks . | . . . . . . Impact . | . . . . . . Kinetic . | . . . . . . Secondary . | . . . . . . Self-Inflicted Damage 110 | . . . . . 110 Shots 2 | . . . . . 2 Rammed . | . . . . . . Targets Rammed . | . . . . . . Kicked . | . . . . . . Crushed . | . . . . . . Highest Temperature 862 | 45 27 54 48 . 862 Average Temperature 140 | 19 12 24 21 . 187 Received Heat Transfer 519 | . . . 42 . 477 Effects 22 | . . . . . 22 Shutdowns 3 | . . . . . 3 Energy Bleed 2 | . . . . . 2 Interference 5 | . . . . . 5 Matter Decay 3 | . . . . . 3 Short Circuit 2 | . . . . . 2 Damage (minor) 3 | . . . . . 3 Damage (core) 4 | . . . . . 4 Siege Activations . | . . . . . . Robots Corrupted . | . . . . . . Combat Hostiles . | . . . . . . Parts Fried 1 | . . . . . 1 Impact Corruptions . | . . . . . . Robots Melted 1 | . . . . . 1 Combat Hostiles . | . . . . . . Parts Melted 9 | 1 1 . . . 7 Heat Transferred 2701 | 259 185 111 148 . 1998 Parts Sabotaged . | . . . . . . Parts Stolen . | . . . . . . Parts Stripped . | . . . . . . Power Chain Reactions . | . . . . . . Missiles Intercepted . | . . . . . . Alert | -11 -10 -10 -9 -9 -8 ------- Run | Scr Mat Min Mat Min Mat Peak Influence 410 | 15 110 208 85 33 410 Initial 42 | . 9 42 2 33 12 Average 99 | 5 43 132 12 33 219 Maximum Alert Level 2 | . . 1 . . 2 Low Security (%) 72 | 100 100 59 100 100 32 Level 1 26 | . . 40 . . 62 Level 2 1 | . . . . . 5 Level 3 . | . . . . . . Level 4 . | . . . . . . Level 5 . | . . . . . . High Security . | . . . . . . Max Security . | . . . . . . Squads Dispatched 5 | . . 1 1 . 3 Investigation 1 | . . 1 . . . Extermination . | . . . . . . Reinforcement 4 | . . . 1 . 3 Assault . | . . . . . . Garrison . | . . . . . . Intercept . | . . . . . . Searches Triggered . | . . . . . . Construction Impeded 2 | . . . . . 2 Haulers Reinforced . | . . . . . . Active Scanning Responses . | . . . . . . Cargo Convoy Interrupts . | . . . . . . Stealth | -11 -10 -10 -9 -9 -8 --------- Run | Scr Mat Min Mat Min Mat Distress Signals 3 | . . . . . 3 Communications Jammed . | . . . . . . Distress Signals . | . . . . . . Times Spotted 44 | . 2 6 6 . 30 Peak Tracking Total 7 | . 1 3 6 . 7 Tactical Retreats 2 | . . . . . 2 Traps | -11 -10 -10 -9 -9 -8 ------- Run | Scr Mat Min Mat Min Mat Traps Triggered . | . . . . . . Indirectly . | . . . . . . Trap Hack Attempts . | . . . . . . Triggered . | . . . . . . Disarmed . | . . . . . . Reprogrammed . | . . . . . . Reused . | . . . . . . Traps Extracted . | . . . . . . Installed . | . . . . . . Triggered . | . . . . . . Machines | -11 -10 -10 -9 -9 -8 ---------- Run | Scr Mat Min Mat Min Mat Machines Disabled 2 | . . . . . 2 Max in Single Turn 2 | . . . . . 2 Machines Sabotaged . | . . . . . . Garrisons Compromised . | . . . . . . Overloaded Fab Kills . | . . . . . . Hacking | -11 -10 -10 -9 -9 -8 --------- Run | Scr Mat Min Mat Min Mat Machines Accessed 14 | . 2 1 7 1 3 Terminals 11 | . 2 . 6 . 3 Fabricators . | . . . . . . Repair Stations . | . . . . . . Recycling Units . | . . . . . . Scanalyzers 1 | . . . 1 . . Garrison Access . | . . . . . . Total Hacks 45 | . 5 1 25 1 13 Successful 32 | . 2 1 19 1 9 Failed 13 | . 3 . 6 . 4 Catastrophic 2 | . 1 . 1 . . Database Lockouts . | . . . . . . Manual 15 | . . . 8 . 7 Terminals 39 | . 5 . 21 . 13 Fabricators . | . . . . . . Repair Stations . | . . . . . . Recycling Units . | . . . . . . Scanalyzers 4 | . . . 4 . . Garrison Access . | . . . . . . Terminal Hacks 27 | . 2 1 14 1 9 Prototype ID Bank 2 | . . . 2 . . Open Door 2 | . . 1 . 1 . Branch Access Points 2 | . . . 1 . 1 Emergency Access Points 2 | . . . 1 . 1 Terminal Index 2 | . . . 1 . 1 Locate Traps 4 | . 1 . 3 . . Dispatch Records 2 | . . . 2 . . Security Status 2 | . . . 1 . 1 Patrol Status 1 | . . . . . 1 Transport Status 1 | . . . . . 1 Hauler Manifests 1 | . . . 1 . . Registered Components 1 | . . . . . 1 Zone Layout 5 | . 1 . 2 . 2 Fabricator Hacks . | . . . . . . Repair Station Hacks . | . . . . . . Recycling Unit Hacks . | . . . . . . Scanalyzer 4 | . . . 4 . . Insert Component 2 | . . . 2 . . Analyze 2 | . . . 2 . . Garrison Access Hacks . | . . . . . . Unauthorized Hacks 1 | . . . 1 . . Terminals 1 | . . . 1 . . Assimilate 1 | . . . 1 . . Fabricators . | . . . . . . Repair Stations . | . . . . . . Recycling Units . | . . . . . . Scanalyzers . | . . . . . . Garrison Access . | . . . . . . Data Cores Recovered 1 | . . . . . 1 Used . | . . . . . . Hacking Detections 12 | . 2 . 7 . 3 Full Trace Events . | . . . . . . Feedback Events . | . . . . . . Feedback Blocked . | . . . . . . Robot Schematics Acquired . | . . . . . . Robots Built . | . . . . . . Authchips . | . . . . . . Time . | . . . . . . Total Robot Build Rating . | . . . . . . Part Schematics Acquired 2 | . . . 2 . . Parts Built . | . . . . . . Authchips . | . . . . . . Time . | . . . . . . Total Part Build Rating . | . . . . . . Parts Repaired . | . . . . . . Time . | . . . . . . Parts Recycled . | . . . . . . Recycled Matter . | . . . . . . Retrieved Matter . | . . . . . . Retrieved Components . | . . . . . . Parts Scanalyzed 2 | . . . 2 . . Part Schematics Acquired 2 | . . . 2 . . Parts Damaged . | . . . . . . Bothacking | -11 -10 -10 -9 -9 -8 ------------ Run | Scr Mat Min Mat Min Mat Used RIF Installer . | . . . . . . Robots Hacked . | . . . . . . Non-combat . | . . . . . . Combat . | . . . . . . Robot Hacks Applied . | . . . . . . Relay Couplers Released . | . . . . . . Fabnet Peak Effective % . | . . . . . . Robots Rewired . | . . . . . . Allies Hacked . | . . . . . . Hacks Repelled . | . . . . . . Allies | -11 -10 -10 -9 -9 -8 -------- Run | Scr Mat Min Mat Min Mat Total Allies 3 | . . 3 . . . Largest Group 3 | . . 3 3 1 1 Highest-Rated Group 40 | . . 40 40 8 8 Highest-Rated Ally 16 | . . 16 16 8 8 Total Orders . | . . . . . . Ally Attacks 20 | . . . 17 . 3 Total Damage 165 | . . . 153 . 12 Kills 1 | . . . 1 . . Allies Corrupted . | . . . . . . Allies Melted . | . . . . . . Intel | -11 -10 -10 -9 -9 -8 ------- Run | Scr Mat Min Mat Min Mat Robot Analysis Total . | . . . . . . Derelict Logs Recovered 2 | . . 2 . . . Drone Launches . | . . . . . . Drone Recoveries . | . . . . . . Exploration | -11 -10 -10 -9 -9 -8 ------------- Run | Scr Mat Min Mat Min Mat Turns Passed 2096 | 98 170 512 678 83 555 Spaces Moved 1532 | 63 185 547 379 87 271 Core 11 | 11 . . . . . Treads . | . . . . . . Legs . | . . . . . . Wheels 1521 | 52 185 547 379 87 271 Hover . | . . . . . . Flight . | . . . . . . Fastest Speed 50 | 50 80 80 95 95 95 Average Speed 87 | 74 80 80 95 95 98 Slowest Speed 140 | 80 80 80 95 95 140 Overloaded Moves . | . . . . . . Propulsion Burnouts . | . . . . . . Robots Hopped . | . . . . . . Cave-ins Triggered . | . . . . . . Exploration Rate (%) 35 | 4 32 92 40 23 21 Regions Visited 5 Branch Regions 2 Pre-discovered Areas . | . . . . . . Known Exits Taken 1 | . . . 1 . . Unknown Exits Taken 4 | 1 1 1 . 1 . Scrap Searched 1 | . . 1 . . . Spaces Dug . | . . . . . . Terrain Destroyed 29 | . . . . . 29 Melee . | . . . . . . Projectile 9 | . . . . . 9 AOE 20 | . . . . . 20 Terrain Rammed . | . . . . . . Walls Destroyed . | . . . . . . Machines Disabled . | . . . . . . Actions | -11 -10 -10 -9 -9 -8 --------- Run | Scr Mat Min Mat Min Mat Total 2130 | 91 198 605 688 87 461 Wait 442 | . 7 45 282 . 108 Move 1527 | 62 184 546 378 86 271 Hop . | . . . . . . Pick Up 39 | 11 1 6 9 1 11 Fast Attach . | . . . . . . Attach 26 | 7 . . 5 . 14 Detach . | . . . . . . Swap 5 | . 1 . 2 . 2 Drop 14 | . 1 . 7 . 6 Fire 77 | 11 4 8 5 . 49 Melee . | . . . . . . Ram . | . . . . . . Kick . | . . . . . . Crush . | . . . . . . Escape Stasis . | . . . . . . Rewire . | . . . . . . Trap . | . . . . . . Miscellaneous . | . . . . . . Route ------- -11/Scrapyard -10/Materials -10/Mines -9/Materials (discovered 4 exits: *Mat / *Min x2 / Sto) -9/Mines -8/Materials History --------- Turn | Location | Event 6 | -11/Scrapyard | Discovered new exit (range 15) 99 | -11/Scrapyard | Entered Materials 249 | -10/Materials | Discovered new exit (range 11) 269 | -10/Materials | Entered Mines 308 | -10/Mines | Build established: Mutant 336 | -10/Mines | Met a Derelict bent on vengeance 359 | -10/Mines | Discovered new exit (range 14) 377 | -10/Mines | Assisted by bots powering up and referring to "LRC-V3" 467 | -10/Mines | A weapon hastily lodged in a ceiling crevice suddenly fell to the ground 474 | -10/Mines | Learned Materials emergency access door positions 481 | -10/Mines | Learned Materials stockpile data 503 | -10/Mines | Received a Rocket Launcher from a helpful Derelict 528 | -10/Mines | Met a Derelict shopkeep closing up shop 781 | -10/Mines | Entered Materials 781 | -9/Materials | Accompanied by 3 allies 781 | -9/Materials | Evolved 2 slots: Utility x1, Weapon x1 1068 | -9/Materials | Build established: Gunner 1240 | -9/Materials | Identified exit to Mines 1240 | -9/Materials | Identified exit to Storage 1249 | -9/Materials | Discovered new exit (range 4) 1459 | -9/Materials | Entered Mines 1459 | -9/Mines | Accompanied by 1 ally 1513 | -9/Mines | Discovered new exit (range 11) 1523 | -9/Mines | Found the Drone Emporium 1528 | -9/Mines | Found Prototype Device 1542 | -9/Mines | Entered Materials 1542 | -8/Materials | Accompanied by 1 ally 1542 | -8/Materials | Evolved 2 slots: Propulsion x1, Utility x1 1741 | -8/Materials | Core integrity fell below 50% 1758 | -8/Materials | Core integrity fell below 20% 2097 | -8/Materials | Destroyed by G-47 Trooper with Particle Gun Last Messages --------------- 02075_ K-01 Serf destroyed. 02076_ ALERT: Construction progress impeded, dispatching reinforcements to local area. 02078_ Nuclear Core destroyed. 02079_ The unstable cave ceiling collapses. 02079_ K-01 Serf collects debris. 02081_ U-05 Engineer builds a Wall. 02081_ Acquired 25 matter. 02083_ K-01 Serf collects debris. 02083_ U-05 Engineer lays Concrete. 02084_ U-05 Engineer builds a Wall. 02087_ K-01 Serf collects debris. 02087_ U-05 Engineer lays Concrete. 02088_ U-05 Engineer builds a Wall. 02088_ S-10 Pest misfires. 02089_ K-01 Serf collects debris. 02095_ Shock Bomb Launcher destroyed. 02095_ Wheel destroyed. 02096_ U-05 Engineer lays Concrete. 02097_ S-10 Pest IFF system glitched. Map ----- +----------------------------------------------------+ | ???????????????????????????????? ## # | | ???????????????????????????????? ######+## | | ???????????????????????????????? T / | | ???????????????????????????????? ## | | ???????????????????????????????? ########## | | ????????????????????????????????" ""#??# | | ????????????????????????????????"" ""#??# "" | | ????????????????????????????????"" T"#??# "" | | ????????????????????????????????"" ""#??# "" | | ???????????????????? """ ""#??# | | ???????????????????? ###??# "" | | ???????????????????? #????# "" | | ???????????????????? ###????# "" | | ???????????????????? ######## | | ???????????????????? ### ## = ###### | | ???????????????????? #?# ## "# "T" | | ???????????????????? #?# ## T# | | ???????????????????? #?# + "# ] | | ???????????????????? # #?###### # [ # | | ???????????????????? ###### ###??????# ###### | | ???????????????????? #????# #????????# ## | | ???????????????????? #??###+############# ### | | ????????????????????##??# # # #?# | | ????????????????????????# """ # " =%# #?# | | ??????????????????#######[ """ # !==[#%######## | | ?????????? #### #@ """ # % #=######## | | ?????????? # s u % # =%= | | ?????????? + """ [/% =% % | | ?????????? # """ g =**== | | ?????????????###### # """ g % ##* | | ??????????????????## ##% =[ ### | | ???????????????????? ## # == #?# | | ???????????????????? ## # # ### | | ???????????????????? ############ ##### | | ???????????????????? #??????????#### ##???# | | ???????????????????? #?????????????# #????# | | ???????????????????? ##########????# #????# | | ???????????????????? # #?????##????# | | ???????????????????? # """ #???######### | | ???????????????????? # """ #???######### | | ?????????????????????????????????????????#### | | ?????????????????????????????????????????# # | | ?????????????????????????????????????????# + | | ?????????????????????????????????????????# # | | ?????????????????????????????????????????#### | | ????????????????????????????????????????????## # | | ?????????????????????????????????????????????# # | | ?????????????????????????????????????????????# # | | ?????????????????????????????????????????????# # | | ?????????????????????????????????????????????# # | +----------------------------------------------------+ Best States ------------- Heat Dissipation 45 Energy Generation 14 Energy Capacity 265 Matter Stores 300 Matter Capacity 300 Sight Range 16 Terrain Scan Density 10 Evasion (%) 50 Targeting Accuracy 8 Offensive Hacking 10 Item Schematics ----------------- Arm. Wheel | -9/Materials | Scanalyzed Nuclear Core | -9/Materials | Scanalyzed Robot Schematics ------------------ None Fabricated ------------ Nothing Alien Tech Used ----------------- None Achievements -------------- None Challenges ------------ None Game ------ Seed ChainSlugDoomcannon Manual? 0 Play Time 00:36:12 Cumulative 61.9 hours Start 2022.04.09 @ 17:31:04 End 2022.04.09 @ 18:24:49 Sessions 1 Manual Loads 0 Difficulty Rogue Special Mode None Game No. 106 Rogue 106 Adventurer 0 Explorer 0 Win Type - Total 1 Types 1/0/0/0/0/0/0/0/0 Lore% 38 Gallery% 36 Achievement% 36 Wizard Run 0 Options --------- ASCII 0 Keyboard 0 Movement Mouse Keybinds 0 Fullscreen 1 Font 18/SmallcapsGlow Map View 76x50 Tactical HUD 1 Map Filters NONE Filters NONE Steam 1 RUN: 87c8f603-717d-4429-b1f2-73f42acd355e